bitfinex-derivatives/quotes_ETHF0:USTF0_20250110
["timestamp","ask_amount","ask_price","bid_price","bid_amount"]
[1736529479667,0.30698,3258.0,3257.9,40.8]
[1736529479865,3.37498,3258.0,3257.9,40.8]
[1736529480058,3.32898,3258.0,3257.9,40.8]
[1736529481168,3.32898,3258.0,3257.9,41.10699]
[1736529481770,3.32898,3258.0,3257.9,40.8]
[1736529481969,3.32898,3258.0,3257.9,41.10699]
[1736529482671,3.2078,3258.7,3257.9,41.10699]
[1736529482672,0.30695,3258.3,3257.9,41.10699]
[1736529482973,3.37495,3258.4,3258.3,0.30695]
[1736529483165,3.068,3258.5,3258.2,3.2078]
[1736529483364,3.2078,3259.5,3258.2,3.2078]
[1736529483365,3.068,3258.9,3258.8,0.3069]
[1736529483564,3.068,3258.9,3258.8,44.3147]
[1736529483770,3.37489,3258.9,3258.8,40.8]
[1736529484274,6.58269,3258.9,3258.8,40.8]
[1736529484474,0.30697,3258.1,3258.0,3.2078]
[1736529484678,3.37497,3258.1,3258.0,3.2078]
[1736529484972,3.37497,3258.1,3258.0,44.0078]
[1736529485174,3.068,3258.1,3258.0,44.31478]
[1736529485573,3.37497,3258.1,3258.0,44.31478]
[1736529486272,3.068,3258.1,3258.0,44.31478]
[1736529486673,3.37497,3258.1,3258.0,44.31478]
[1736529487173,0.30694,3258.6,3258.5,0.30692]
[1736529487376,0.30694,3258.6,3258.1,0.76743]
[1736529487377,3.068,3258.5,3258.4,0.30694]
[1736529487673,3.068,3258.5,3258.4,3.51474]
[1736529488476,3.2078,3258.9,3258.8,0.3069]
[1736529488677,3.51469,3258.9,3258.8,0.3069]
[1736529488973,6.58269,3258.9,3258.8,0.3069]
[1736529489169,6.58269,3258.9,3258.8,41.1069]
[1736529489370,6.58269,3258.9,3258.8,40.8]
[1736529489878,3.37489,3258.9,3258.8,41.1069]
[1736529490069,3.37489,3258.9,3258.8,40.8]
[1736529490377,3.37489,3258.9,3258.8,41.1069]
[1736529490378,3.068,3258.9,3258.8,41.1069]
[1736529490566,3.37489,3258.9,3258.8,41.1069]
[1736529491872,3.068,3258.9,3258.8,44.3147]
[1736529492478,3.37489,3258.9,3258.8,44.3147]
[1736529492777,3.37489,3258.9,3258.8,44.0078]
[1736529493278,3.37489,3258.9,3258.8,40.8]
[1736529493978,3.068,3258.9,3258.8,41.1069]
[1736529495077,0.4556,3259.6,3258.8,43.69406153]
[1736529495277,0.30686,3259.4,3259.3,0.30685]
[1736529495787,0.30687,3259.3,3259.2,0.30686]
[1736529496279,3.37487,3259.3,3259.2,0.30686]
[1736529496696,0.46065517,3259.8,3259.7,0.30682]
[1736529496976,0.46065517,3259.8,3259.7,3.51462]
[1736529496977,0.00165517,3259.8,3259.7,3.51462]
[1736529497182,0.30675,3260.5,3260.4,0.30674]
[1736529497385,3.068,3260.3,3260.2,0.30677]
[1736529497575,3.068,3260.3,3260.2,41.10677]
[1736529498176,3.068,3260.3,3260.0,0.30679]
[1736529498372,3.068,3260.3,3259.7,3.2078]
[1736529498373,3.068,3259.8,3259.7,3.2078]
[1736529498579,3.068,3259.8,3259.7,0.30682]
[1736529498781,3.37481,3259.8,3259.7,41.10682]
[1736529499579,3.37481,3259.8,3259.7,40.8]
[1736529500486,3.37481,3259.8,3259.7,41.10682]
[1736529500786,0.9067,3260.6,3259.7,44.0078]
[1736529501086,3.068,3260.2,3260.1,3.51458]
[1736529501982,0.9067,3260.6,3260.1,3.2078]
[1736529502180,3.068,3260.3,3260.2,0.30677]
[1736529505084,3.068,3260.3,3260.1,3.2078]
[1736529505284,0.30675,3260.5,3260.4,0.30675]
[1736529505680,3.37475,3260.5,3260.4,0.30675]
[1736529506083,3.068,3260.5,3260.4,0.30675]
[1736529506684,0.9052,3261.3,3261.1,0.30669]
[1736529506988,3.2078,3262.3,3261.0,3.2078]
[1736529507184,3.2078,3262.3,3261.4,3.2078]
[1736529507185,3.068,3261.6,3261.4,3.2078]
[1736529507384,3.068,3261.6,3261.5,0.30665]
[1736529508591,3.068,3261.6,3261.5,41.10665]
[1736529508793,3.068,3261.6,3261.5,40.8]
[1736529508794,3.37464,3261.6,3261.5,40.8]
[1736529508988,3.068,3261.6,3261.5,41.10665]
[1736529510189,0.4483,3262.1,3261.5,40.8]
[1736529510492,0.3066,3262.0,3261.9,0.3066]
[1736529510693,3.068,3261.8,3261.6,0.30664]
[1736529510991,3.068,3261.7,3261.5,40.8]
[1736529511185,3.068,3261.6,3261.5,40.8]
[1736529511382,3.068,3261.6,3261.5,41.10665]
[1736529512290,0.30661,3261.9,3261.8,0.30661]
[1736529512495,3.37461,3261.9,3261.8,0.30661]
[1736529512989,3.068,3261.9,3261.5,40.8]
[1736529513196,3.37462,3261.8,3261.7,0.30662]
[1736529513393,3.37462,3261.8,3261.4,3.2078]
[1736529513394,0.30664,3261.7,3261.6,0.30663]
[1736529514189,3.37464,3261.7,3261.6,0.30663]
[1736529514391,3.068,3261.7,3261.6,0.30663]
[1736529514798,3.37463,3261.7,3261.6,0.30663]
[1736529516103,3.068,3261.7,3261.6,0.30663]
[1736529516492,3.37463,3261.7,3261.6,0.30663]
[1736529516895,3.37463,3261.7,3261.4,3.2078]
[1736529516896,0.30665,3261.5,3261.4,3.2078]
[1736529517102,3.37465,3261.5,3261.4,44.0078]
[1736529517302,3.37465,3261.5,3261.4,44.31446]
[1736529517999,3.37465,3261.5,3261.4,44.0078]
[1736529518299,0.30669,3261.1,3261.0,3.2078]
[1736529518599,0.30669,3261.1,3261.0,3.5145]
[1736529518789,3.068,3261.1,3261.0,44.3145]
[1736529518991,3.2078,3261.8,3261.0,44.0078]
[1736529519296,3.068,3261.5,3261.4,0.30666]
[1736529519489,3.068,3261.5,3261.4,3.51446]
[1736529520091,3.37465,3261.5,3261.4,3.2078]
[1736529520301,0.30668,3261.2,3261.1,0.30668]
[1736529520804,0.30669,3261.1,3261.0,44.3145]
[1736529521001,0.30669,3261.1,3261.0,40.8]
[1736529521002,3.37469,3261.1,3261.0,40.8]
[1736529521494,3.068,3261.1,3261.0,41.1067]
[1736529521802,0.4571,3261.3,3261.0,44.3145]
[1736529521996,0.30663,3261.7,3261.1,0.76671]
[1736529522192,3.37469,3261.1,3261.0,41.10669]
[1736529522402,3.37469,3261.1,3261.0,40.8]
[1736529522794,3.068,3261.1,3261.0,40.8]
[1736529523101,3.068,3261.1,3261.0,44.3145]
[1736529524899,0.30666,3261.5,3261.4,0.30665]
[1736529525403,0.4625,3261.8,3261.7,0.30663]
[1736529525793,0.4394,3262.5,3261.7,2.89406153]
[1736529525997,3.068,3262.1,3262.0,3.5144]
[1736529526399,3.068,3262.1,3262.0,44.3144]
[1736529527003,3.37459,3262.1,3262.0,44.3144]
[1736529527203,3.068,3262.1,3262.0,44.3144]
[1736529527408,3.37459,3262.1,3262.0,44.3144]
[1736529527703,3.068,3262.1,3262.0,44.3144]
[1736529529106,3.83579,3262.1,3262.0,44.3144]
[1736529529603,3.83579,3262.1,3262.0,3.2078]
[1736529530010,3.5292,3262.1,3262.0,3.5144]
[1736529530306,3.5292,3262.1,3262.0,44.3144]
[1736529530510,3.068,3262.1,3262.0,44.3144]
[1736529531410,3.068,3262.1,3262.0,40.8]
[1736529531707,0.30664,3261.6,3261.5,3.51445]
[1736529531908,3.068,3261.2,3261.1,3.51449]
[1736529532215,3.068,3261.2,3261.1,44.31449]
[1736529532407,3.32978,3261.2,3261.1,44.31449]
[1736529533011,3.32978,3261.2,3261.1,44.0078]
[1736529533213,6.2309,3261.2,3260.2,3.97473]
[1736529533516,0.30672,3260.8,3260.7,0.30672]
[1736529533815,1.3527,3261.1,3260.2,3.97473]
[1736529533816,3.0231,3260.7,3260.6,0.30673]
[1736529534110,3.0231,3260.7,3260.6,3.51453]
[1736529534413,3.32982,3260.7,3260.6,3.2078]
[1736529534707,3.0231,3260.7,3260.1,3.2078]
[1736529534908,0.30676,3260.4,3260.3,0.30676]
[1736529535104,3.32987,3260.2,3260.1,3.51458]
[1736529535305,3.0231,3260.2,3260.1,44.31458]
[1736529535712,3.32987,3260.2,3260.1,3.51458]
[1736529535917,3.76547,3260.2,3260.1,3.51458]
[1736529536211,3.4587,3260.2,3260.1,3.51458]
[1736529536406,3.2078,3261.2,3260.1,3.2078]
[1736529536611,3.0231,3260.5,3260.4,3.51455]
[1736529536809,0.4778,3261.0,3260.9,0.30671]
[1736529537115,3.5009,3261.0,3260.9,41.10671]
[1736529537308,3.8076,3261.0,3260.9,41.10671]
[1736529537511,3.8076,3261.0,3260.9,40.8]
[1736529538709,3.5009,3261.0,3260.9,41.10671]
[1736529538912,3.8076,3261.0,3260.9,41.10671]
[1736529539115,3.8076,3261.0,3260.9,40.8]
[1736529539618,3.8076,3261.0,3260.9,41.10671]
[1736529539812,3.8076,3261.0,3260.9,40.8]
[1736529540809,0.30674,3260.5,3260.4,3.2078]
[1736529541009,3.32984,3260.5,3260.4,3.51455]
[1736529541314,3.32984,3260.5,3260.4,44.0078]
[1736529541709,3.0231,3260.5,3260.4,44.31455]
[1736529542408,0.4778,3261.0,3260.9,0.30671]
[1736529542608,3.0231,3261.0,3260.8,3.2078]
[1736529542813,3.51447,3261.3,3261.2,0.30668]
[1736529543116,3.51447,3261.3,3260.8,3.97458]
[1736529543117,6.2309,3261.3,3260.8,3.2078]
[1736529543420,3.0231,3261.0,3260.9,0.30671]
[1736529545412,3.0231,3261.0,3260.9,41.10671]
[1736529548823,0.7666,3261.7,3260.9,41.10671]
[1736529548824,0.46,3261.8,3260.9,40.8]
[1736529549017,3.0231,3261.7,3261.5,3.2078]
[1736529549321,3.0231,3261.9,3261.8,0.30662]
[1736529549623,3.0231,3262.1,3262.0,0.3066]
[1736529549817,3.0231,3262.1,3262.0,3.5144]
[1736529550125,3.0231,3262.1,3262.0,44.3144]
[1736529552027,3.51435,3262.6,3262.5,0.30655]
[1736529552220,3.0231,3262.1,3262.0,44.3144]
[1736529552921,0.4641,3262.8,3262.1,0.76648]
[1736529553126,0.4641,3262.8,3262.4,3.2078]
[1736529553513,0.30655,3262.6,3262.5,0.30655]
[1736529553923,3.32965,3262.6,3262.5,0.30655]
[1736529554922,3.0231,3262.6,3262.5,0.30655]
[1736529555124,3.32965,3262.6,3262.5,0.30655]
[1736529555928,3.0231,3262.6,3262.5,0.30655]
[1736529556626,3.32965,3262.6,3262.5,0.30655]
[1736529556818,3.0231,3262.6,3261.9,3.2078]
[1736529557025,3.0231,3262.1,3262.0,0.3066]
[1736529559131,3.0231,3262.1,3261.9,44.0078]
[1736529559335,3.0231,3262.1,3261.9,3.2078]
[1736529559336,3.7755,3262.0,3261.9,3.2078]
[1736529559921,3.7755,3262.0,3261.9,3.51441]
[1736529560121,3.7755,3262.0,3261.9,3.2078]
[1736529560328,0.30661,3261.9,3261.8,40.8]
[1736529560632,3.32971,3261.9,3261.8,40.8]
[1736529560833,0.30664,3261.6,3261.5,0.30664]
[1736529561127,0.30662,3261.8,3261.7,0.30662]
[1736529561430,3.0231,3261.5,3261.4,40.8]
[1736529561631,0.4458,3262.0,3261.9,0.30661]
[1736529561832,3.0231,3262.0,3261.9,0.30661]
[1736529562433,0.30662,3261.9,3261.8,0.30661]
[1736529562635,3.0231,3261.6,3261.5,3.51445]
[1736529562830,3.32974,3261.6,3261.5,3.51445]
[1736529563027,3.0231,3261.6,3261.4,40.8]
[1736529563226,0.30668,3261.2,3261.1,3.2078]
[1736529563430,3.0231,3261.2,3260.7,0.4462]
[1736529563624,3.0231,3260.9,3260.8,41.1067]
[1736529564631,3.0231,3260.9,3260.8,43.49112461]
[1736529565229,0.30667,3261.3,3261.2,0.30667]
[1736529565437,3.0231,3260.9,3260.8,43.49113461]
[1736529565731,0.4322,3261.4,3261.3,0.30667]
[1736529565931,0.73886,3261.4,3261.3,0.30667]
[1736529566130,3.76196,3261.4,3261.3,0.30667]
[1736529566334,0.30668,3261.3,3261.2,0.30667]
[1736529566836,3.0231,3261.3,3261.2,0.30667]
[1736529567832,0.4635,3262.1,3261.2,40.8]
[1736529568136,3.2078,3262.6,3261.7,3.2078]
[1736529568436,0.30658,3262.3,3262.2,0.30658]
[1736529568739,0.4635,3262.4,3261.8,0.76656]
[1736529568936,3.0231,3261.9,3261.8,0.30662]
[1736529569132,3.0231,3262.1,3262.0,0.3066]
[1736529569740,3.0231,3262.1,3261.9,0.76652]
[1736529569741,3.51435,3262.6,3262.5,0.30655]
[1736529570031,3.51435,3262.6,3262.5,40.8]
[1736529570228,6.53745,3262.6,3262.5,40.8]
[1736529570430,3.0231,3262.6,3262.5,41.10655]
[1736529570630,3.32965,3262.6,3262.5,41.10655]
[1736529571136,3.0231,3262.6,3262.5,41.10655]
[1736529573737,3.0231,3262.6,3262.5,46.69877461]
[1736529573934,0.8949,3263.5,3263.4,0.30647]
[1736529574240,16.44324271,3264.0,3263.9,0.30642]
[1736529574241,16.74966271,3264.0,3263.9,0.30642]
[1736529574438,0.30645,3263.7,3263.6,0.30645]
[1736529574637,0.30645,3263.7,3263.2,3.2078]
[1736529574638,3.0231,3263.3,3263.2,3.51429]
[1736529574833,3.0231,3263.6,3263.2,3.2078]
[1736529575134,3.0231,3263.6,3263.5,2.69088461]
[1736529575533,3.0231,3263.6,3263.5,0.30646]
[1736529575732,3.0231,3263.6,3263.5,41.10646]
[1736529576935,0.4664,3264.1,3263.6,0.76613]
[1736529577237,3.0231,3264.0,3263.9,0.30642]
[1736529577728,0.30635,3264.8,3263.9,0.76606]
[1736529577935,3.0231,3264.2,3264.1,0.3064]
[1736529578535,3.0231,3264.2,3264.1,41.1064]
[1736529578737,0.4767,3264.9,3264.1,40.8]
[1736529578935,13.73175873,3266.3,3266.2,0.30621]
[1736529579131,13.73175873,3266.3,3266.2,6.39977064]
[1736529579132,13.23544271,3266.3,3266.2,6.39977064]
[1736529579329,16.25854271,3266.3,3266.2,6.39977064]
[1736529579534,16.25854271,3266.3,3266.2,47.19977064]
[1736529580740,3.0231,3266.3,3266.2,47.19977064]
[1736529581828,2.5231,3266.3,3266.2,47.19977064]
[1736529582237,2.0231,3266.3,3266.2,47.19977064]
[1736529582540,3.2078,3267.1,3266.2,47.19977064]
[1736529582541,3.2078,3267.1,3266.2,46.89356064]
[1736529582740,0.30614,3267.0,3266.7,2.88576064]
[1736529582940,0.30614,3266.9,3266.7,2.88576064]
[1736529583141,3.2078,3267.1,3266.7,2.88576064]
[1736529583334,0.76507,3268.2,3266.7,2.88576064]
[1736529583335,3.2078,3268.2,3266.7,6.09356064]
[1736529583537,0.9393,3268.1,3267.6,2.88576064]
[1736529584335,3.2078,3268.2,3267.6,2.88576064]
[1736529584540,3.2078,3267.7,3267.6,2.88576064]
[1736529584938,0.76914,3268.1,3267.6,2.88576064]
[1736529585236,0.76913,3268.1,3267.7,0.30606]
[1736529585444,0.30604,3268.0,3267.7,0.30606]
[1736529585640,0.9393,3268.1,3267.6,2.88576064]
[1736529585832,0.30605,3267.9,3267.6,2.88576064]
[1736529586238,0.30608,3267.6,3267.2,3.19187064]
[1736529586443,0.3061,3267.4,3267.2,2.88576064]
[1736529586840,0.30612,3267.2,3266.8,6.39971064]
[1736529587041,3.2078,3267.8,3266.8,6.09356064]
[1736529587042,0.4749,3267.1,3266.8,6.09356064]
[1736529587244,0.4749,3267.1,3267.0,0.30613]
[1736529587547,0.4749,3267.1,3266.9,0.30613]
[1736529587847,0.4749,3267.1,3266.4,6.09356064]
[1736529588342,3.2078,3266.9,3266.0,2.88576064]
[1736529588551,3.2078,3266.5,3266.0,2.88576064]
[1736529588750,0.3062,3266.3,3266.0,2.88576064]
[1736529588950,0.3062,3266.4,3266.0,3.19198064]
[1736529589247,0.3062,3266.4,3265.6,3.2078]
[1736529589248,3.2078,3266.6,3265.9,2.88576064]
[1736529589556,3.2078,3266.6,3266.5,0.30618]
[1736529589742,3.2078,3266.6,3266.3,2.88576064]
[1736529589937,3.2078,3266.6,3266.5,0.30618]
[1736529590440,3.2078,3267.3,3266.3,2.88576064]
[1736529590641,0.30613,3267.1,3266.8,0.30615]
[1736529591044,0.30611,3267.3,3267.0,0.30613]
[1736529591245,0.30612,3267.2,3266.9,41.10614]
[1736529591436,0.30611,3267.3,3267.0,0.30613]
[1736529591637,0.4413,3267.6,3266.9,41.10614]
[1736529591851,0.30612,3267.1,3266.9,41.10614]
[1736529592242,0.30611,3267.3,3267.1,0.30612]
[1736529592446,0.4534,3267.6,3267.1,2.88576064]
[1736529592846,0.30603,3268.1,3267.9,0.30605]
[1736529593048,0.30603,3268.1,3267.9,3.19181064]
[1736529593351,3.2078,3268.2,3267.5,2.88576064]
[1736529593557,3.2078,3268.2,3267.7,0.30606]
[1736529593852,0.30605,3268.0,3267.8,0.30606]
[1736529594044,0.30601,3268.4,3268.2,0.30602]
[1736529594239,0.30601,3268.4,3267.9,2.88576064]
[1736529594240,3.2078,3268.6,3268.5,0.30599]
[1736529594949,3.2078,3268.6,3268.5,40.8]
[1736529595149,3.51378,3268.6,3268.5,40.8]
[1736529595539,3.2078,3268.6,3268.5,40.8]
[1736529595743,0.30597,3268.8,3268.6,0.30598]
[1736529595948,0.76478,3269.4,3268.5,40.8]
[1736529595949,3.2078,3269.1,3268.5,40.8]
[1736529596142,0.30598,3268.6,3268.5,40.8]
[1736529596353,3.2078,3268.7,3268.1,3.2078]
[1736529596749,0.30606,3267.9,3267.5,2.88576064]
[1736529597048,0.30607,3267.7,3267.5,2.88576064]
[1736529597351,1.66018,3268.6,3267.1,2.88576064]
[1736529597352,3.97293,3267.9,3267.1,2.88576064]
[1736529597743,0.30612,3267.2,3267.0,40.8]
[1736529597949,3.97293,3267.9,3267.0,40.8]
[1736529598151,0.30612,3267.1,3267.0,41.10613]
[1736529598350,1.23178,3267.7,3267.0,40.8]
[1736529598548,0.30612,3267.2,3267.1,0.30612]
[1736529598748,0.30609,3267.5,3267.1,2.88576064]
[1736529598954,0.30611,3267.3,3267.1,3.19188064]
[1736529599149,0.3061,3267.4,3267.1,2.88576064]
[1736529599344,0.3061,3267.3,3267.2,0.3061]
[1736529599954,0.4666,3267.7,3267.1,2.88576064]
[1736529600250,0.30611,3267.2,3267.1,2.88576064]
[1736529600553,0.3061,3267.4,3266.7,2.88576064]
[1736529600755,0.3061,3267.4,3267.1,0.30612]
[1736529600953,3.2078,3267.5,3267.2,0.30611]
[1736529601252,3.51385,3267.9,3267.6,0.30608]
[1736529601454,0.4439,3268.4,3267.8,40.8]
[1736529601749,0.30601,3268.3,3267.8,40.8]
[1736529601954,0.30604,3268.1,3268.0,0.30604]
[1736529602451,0.30602,3268.2,3268.1,0.30603]
[1736529602750,0.4439,3268.4,3267.9,0.30604]
[1736529602953,0.30604,3268.0,3267.9,0.30604]
[1736529603158,0.30604,3268.0,3267.8,40.8]
[1736529603159,0.30603,3268.2,3268.0,0.30603]
[1736529603356,0.30603,3268.1,3268.0,0.30603]
[1736529603550,0.4439,3268.4,3267.8,40.8]
[1736529603751,0.30603,3268.1,3268.0,0.30603]
[1736529604150,0.4439,3268.4,3268.1,0.30603]
[1736529604356,0.30602,3268.2,3268.1,0.30603]
[1736529604666,0.4439,3268.4,3267.8,40.8]
[1736529604856,0.30602,3268.3,3268.2,0.30601]
[1736529605355,0.4439,3268.4,3268.1,0.30602]
[1736529605549,0.30602,3268.2,3268.1,0.30602]
[1736529605851,0.4628,3268.6,3267.9,2.88576064]
[1736529606056,0.30601,3268.4,3268.3,0.306]
[1736529606256,0.30599,3268.6,3268.5,0.30599]
[1736529606460,0.4675,3268.9,3268.1,3.2078]
[1736529606761,0.4675,3268.9,3268.3,2.88576064]
[1736529606959,0.30597,3268.8,3268.4,0.306]
[1736529607153,0.30599,3268.6,3268.5,0.30599]
[1736529607455,0.30596,3268.8,3268.4,0.30599]
[1736529607647,0.30596,3268.8,3268.5,0.30598]
[1736529607853,0.30598,3268.6,3268.5,0.30598]
[1736529608252,0.30598,3268.7,3268.6,0.30598]
[1736529608759,0.30599,3268.6,3268.5,0.30599]
[1736529608952,0.4675,3268.9,3268.3,2.88576064]
[1736529608953,0.30598,3268.7,3268.3,2.88576064]
[1736529609258,0.30599,3268.6,3268.3,2.88576064]
[1736529609452,0.30599,3268.6,3268.5,0.30599]
[1736529609659,0.4675,3268.9,3268.3,2.88576064]
[1736529609857,0.30595,3269.0,3268.7,0.30597]
[1736529610051,0.30595,3269.0,3268.9,0.30595]
[1736529610251,0.30595,3269.0,3268.8,2.88576064]
[1736529610252,3.2078,3269.1,3268.8,2.88576064]
[1736529610454,0.30594,3269.1,3268.9,41.10595]
[1736529610653,3.2078,3269.6,3268.9,40.8]
[1736529610963,0.30591,3269.5,3269.0,0.8934]
[1736529611152,3.2078,3270.2,3269.3,2.88576064]
[1736529611353,3.2078,3270.6,3270.0,0.30584]
[1736529611559,0.30582,3270.4,3270.2,0.30583]
[1736529611762,3.2078,3270.6,3270.3,0.30582]
[1736529612059,0.30576,3271.0,3270.7,0.30578]
[1736529612256,0.30576,3271.0,3270.2,3.2078]
[1736529612257,3.2078,3271.1,3270.2,3.647]
[1736529612461,3.2078,3271.1,3269.6,0.4366]
[1736529612462,3.2078,3270.7,3270.3,40.8]
[1736529612659,3.51359,3270.7,3270.3,0.30582]
[1736529612866,0.3058,3270.6,3270.3,0.30582]
[1736529613061,3.2078,3270.7,3270.4,40.8]
[1736529613355,3.2078,3271.1,3270.4,40.8]
[1736529613556,0.3058,3270.6,3270.4,40.8]
[1736529613761,0.30576,3271.0,3270.7,0.30578]
[1736529613959,0.30579,3270.7,3270.4,44.0078]
[1736529614164,0.30579,3270.7,3270.5,0.3058]
[1736529614358,0.30577,3271.0,3270.5,0.30581]
[1736529614558,0.30578,3270.9,3270.6,0.30579]
[1736529614765,0.30579,3270.7,3270.4,41.10581]
[1736529614960,3.2078,3271.1,3270.4,40.8]
[1736529615157,3.2078,3271.1,3270.4,43.68576064]
[1736529615352,3.2078,3271.1,3270.9,0.30576]
[1736529615553,0.4678,3271.4,3270.8,2.88576064]
[1736529615753,0.30573,3271.4,3271.1,0.30574]
[1736529615958,3.2078,3271.5,3271.1,0.30574]
[1736529616158,3.2078,3272.0,3271.0,3.2078]
[1736529616367,3.2078,3272.0,3271.2,2.88576064]
[1736529616570,3.2078,3272.0,3271.6,0.3057]
[1736529616866,3.2078,3272.0,3271.6,2.88576064]
[1736529617056,3.2078,3272.0,3271.4,3.2078]
[1736529617256,0.30571,3271.6,3271.3,0.30572]
[1736529617469,3.2078,3272.0,3271.2,2.88576064]
[1736529617762,0.30571,3271.6,3271.3,0.30573]
[1736529617963,0.30571,3271.5,3271.2,2.88576064]
[1736529618164,0.30571,3271.5,3271.3,0.30573]
[1736529618472,3.2078,3271.6,3271.2,2.88576064]
[1736529618761,3.2078,3271.6,3271.0,3.2078]
[1736529618962,1.8476,3272.4,3270.8,2.88576064]
[1736529618963,0.30577,3270.9,3270.8,2.88576064]
[1736529619359,0.30575,3271.1,3270.6,3.2078]
[1736529619659,3.2078,3271.2,3270.4,2.88576064]
[1736529619660,0.30579,3270.7,3270.5,0.3058]
[1736529619864,3.2078,3271.2,3270.4,2.88576064]
[1736529620165,0.3058,3270.6,3270.0,3.19161064]
[1736529620366,3.2078,3270.7,3270.0,3.19161064]
[1736529620564,3.2078,3270.7,3269.7,40.8]
[1736529620565,0.4659,3270.6,3269.7,40.8]
[1736529620867,0.9388,3270.6,3269.7,40.8]
[1736529621163,0.30587,3269.9,3269.7,40.8]
[1736529621363,3.2078,3270.3,3269.7,40.8]
[1736529621663,0.30586,3270.0,3269.7,40.8]
[1736529621859,0.30586,3270.0,3269.8,0.30587]
[1736529622059,0.30587,3269.9,3269.7,41.10588]
[1736529622460,3.51367,3269.8,3269.7,40.8]
[1736529623269,3.51367,3269.8,3269.7,41.10588]
[1736529623270,3.2078,3269.8,3269.7,41.10588]
[1736529623470,3.2078,3270.3,3270.0,0.30585]
[1736529623762,3.2078,3270.3,3270.1,0.30584]
[1736529623763,0.30584,3270.2,3270.1,0.30584]
[1736529623965,3.2078,3270.3,3269.8,0.30587]
[1736529624157,0.9388,3270.6,3269.8,3.2078]
[1736529624365,0.30582,3270.4,3270.2,0.30582]
[1736529624569,0.9388,3270.6,3269.8,3.20498866]
[1736529624867,0.30584,3270.2,3270.0,0.30585]
[1736529625062,0.9388,3270.6,3269.8,3.20498866]
[1736529625470,0.30578,3270.8,3270.6,0.30579]
[1736529625670,0.9143,3271.3,3270.3,3.2078]
[1736529625866,0.30579,3270.7,3270.6,0.30579]
[1736529626166,0.30581,3270.4,3270.3,3.51362]
[1736529626373,3.2078,3271.0,3270.3,3.2078]
[1736529626667,3.2078,3271.0,3269.9,0.4423]
[1736529626668,0.76443,3270.9,3270.0,0.30585]
[1736529626964,0.30587,3269.9,3269.7,44.31368]
[1736529627165,0.30587,3269.8,3269.7,44.31368]
[1736529627371,0.30587,3269.8,3269.7,44.0078]
[1736529628162,0.30587,3269.8,3269.7,40.8]
[1736529628364,3.51367,3269.8,3269.7,40.8]
[1736529628870,3.51367,3269.8,3268.8,3.76241664]
[1736529628871,0.30595,3269.0,3268.8,0.74766]
[1736529629071,0.30596,3268.9,3268.8,0.30596]
[1736529629269,0.30596,3268.9,3268.8,40.8]
[1736529629969,0.30596,3268.9,3268.2,3.2078]
[1736529630169,3.2078,3268.6,3267.4,0.4417]
[1736529630469,0.30605,3267.9,3267.6,0.30607]
[1736529630768,3.32071664,3269.0,3267.6,0.30607]
[1736529630769,3.2078,3269.0,3267.6,0.7652]
[1736529630976,3.2078,3269.0,3268.1,3.2078]
[1736529631167,0.30596,3268.9,3268.0,0.30603]
[1736529631367,0.30596,3268.9,3267.7,3.2078]
[1736529631368,3.2078,3268.5,3267.7,3.2078]
[1736529631668,0.30608,3267.6,3267.5,40.8]
[1736529631869,0.30607,3267.7,3267.5,40.8]
[1736529632171,3.2078,3268.1,3267.5,40.8]
[1736529632571,0.30608,3267.6,3267.5,40.8]
[1736529632871,0.30608,3267.6,3267.0,3.2078]
[1736529632872,0.30611,3267.3,3267.0,3.2078]
[1736529633175,0.4775,3268.2,3267.1,40.8]
[1736529633370,0.30608,3267.6,3267.4,3.51389]
[1736529633582,0.4775,3268.2,3267.4,3.2078]
[1736529633777,0.30604,3268.0,3267.8,0.30605]
[1736529633969,0.4775,3268.2,3267.4,3.2078]
[1736529634171,0.4775,3268.2,3267.4,3.97304]
[1736529634479,0.4775,3268.2,3267.4,3.2078]
[1736529634670,0.4775,3268.2,3267.6,0.30607]
[1736529634671,0.30606,3267.8,3267.6,0.30607]
[1736529634976,0.4775,3268.2,3267.4,3.2078]
[1736529635367,3.2078,3268.3,3267.4,3.2078]
[1736529635572,3.2078,3268.3,3267.4,3.97303]
[1736529635770,0.30604,3268.1,3267.4,3.97303]
[1736529635976,0.30604,3268.1,3267.9,0.30605]
[1736529636178,0.30605,3267.9,3267.4,3.2078]
[1736529636677,0.30605,3267.9,3267.7,0.30606]
[1736529636876,0.30604,3268.0,3267.8,0.30606]
[1736529637073,3.6694,3268.4,3267.4,3.2078]
[1736529637272,0.30603,3268.1,3267.9,0.30604]
[1736529637478,0.30603,3268.1,3267.4,3.2078]
[1736529637676,3.6694,3268.4,3267.4,3.2078]
[1736529637880,0.30605,3268.0,3267.8,0.30605]
[1736529638281,0.30602,3268.2,3268.0,0.30604]
[1736529638483,0.30604,3268.1,3267.9,0.30604]
[1736529638978,3.6694,3268.4,3267.4,3.51389]
[1736529638979,0.30608,3267.6,3267.4,3.51389]
[1736529639175,0.4713,3268.0,3267.4,3.2078]
[1736529639381,0.30605,3267.9,3267.7,0.30606]
[1736529639574,0.4713,3268.0,3267.5,40.8]
[1736529639785,0.30605,3267.9,3267.7,0.30607]
[1736529640078,3.2078,3268.2,3267.5,40.8]
[1736529640274,3.2078,3268.2,3267.8,3.2078]